Cogmind - Beta 12 --- EXPLORER MODE // 2023.12.23 @ 15:21:04 // Winter2019/RPGLIKE Player: Megumi Haze Result: Core destroyed Performance ------------- Evolutions (5) 2500 Regions Visited (10) 2000 Robots Destroyed (148) 740 Value Destroyed (4878) 4878 Prototype IDs (21) 420 Alien Tech Used (0) 0 Bonus (377) 377 TOTAL SCORE: 10915 Bonus ------- Follower Combat Kills 77 Met Data Miner 300 Cogmind --------- Core Integrity 0/650 Matter 433/450 Energy 690/780 System Corruption 2% Temperature Critical (664) Movement Walking (107) Location -5/Factory Parts ------- > --- POWER (4) -------- Nuclear Core Improved Deuterium Engine Micro Fission Core Micro Fission Core > --- PROPULSION (4) --- VSS Leg Improved Carbon-fiber Leg Improved Titanium Leg Improved VSS Leg > --- UTILITY (9) ------ Advanced Heat Sink Compact Battery Advanced Sensor Array Improved Signal Interpreter Improved Terrain Scanner Advanced Terrain Scan Processor Improved Targeting Computer Hacking Suite Long-range Tractor Beam > --- WEAPON (4) ------- Improved Arc Projector Mass Driver Improved Remote Datajack Lance > --- INVENTORY (5) ---- Advanced System Restoration Module Tesla Rifle Tesla Rifle Improved Arc Projector Hypervelocity Coil Gun Peak State ------------ > --- POWER ------------ Nuclear Core Improved Deuterium Engine Light Angular Momentum Engine Micro Fission Core > --- PROPULSION ------- VSS Leg Improved Carbon-fiber Leg Improved Titanium Leg Improved VSS Leg > --- UTILITY ---------- Advanced Heat Sink Compact Battery Advanced Sensor Array Improved Signal Interpreter Improved Terrain Scanner Improved Terrain Scan Processor Improved Targeting Computer Precision Matter Filter Hacking Suite > --- WEAPON ----------- Hypervelocity Gauss Rifle Mass Driver Improved Remote Datajack Lance > --- INVENTORY -------- Advanced System Restoration Module Tesla Rifle Tesla Rifle Improved Arc Projector Improved Arc Projector [Rating: 94] Favorites ----------- Power Heavy Ion Engine Engine Heavy Ion Engine Power Core Nuclear Core Propulsion VSS Leg Treads Light Treads Leg VSS Leg Wheel Compact Wheel Flight Unit Flight Unit Utility Improved Targeting Computer Device Improved Terrain Scanner Storage Compact Battery Processor Improved Targeting Computer Hackware Hacking Suite Protection Power Shielding Weapon Improved Datajack Energy Gun Improved Arc Projector Energy Cannon Heavy Ion Cannon Ballistic Gun Hypervelocity Gauss Rifle Ballistic Cannon Mass Driver Launcher Long-range Missile Launcher Special Weapon Improved Remote Datajack Slashing Weapon Katana Piercing Weapon Lance Special Melee Weapon Improved Datajack Build | -11 -10 -9 -8 -7 -6 -6 -6 -6 -5 -5 ------- Run | Jun Mat Mat Mat Fac Fac Low Low Dat Pro Fac Slots Evolved 17 | . 5 5 4 2 . 1 . . . . Power 3 | . . 1 2 . . . . . . . Propulsion 3 | . . 3 . . . . . . . . Utility 8 | . 4 1 . 2 . 1 . . . . Weapon 3 | . 1 . 2 . . . . . . . Parts Attached 138 | 4 15 36 32 15 15 7 3 . 2 9 Power 20 | 1 2 6 2 3 2 . 1 . 1 2 Engine 14 | 1 1 6 2 2 1 . 1 . . . Core 6 | . 1 . . 1 1 . . . 1 2 Reactor . | . . . . . . . . . . . Propulsion 22 | 1 2 15 . 2 2 . . . . . Treads 1 | 1 . . . . . . . . . . Leg 12 | . . 8 . 2 2 . . . . . Wheel 8 | . 1 7 . . . . . . . . Hover . | . . . . . . . . . . . Flight 1 | . 1 . . . . . . . . . Utility 41 | 1 7 5 13 2 5 3 . . . 5 Device 28 | . 3 4 9 1 5 2 . . . 4 Storage 1 | . . . . . . 1 . . . . Processor 8 | 1 4 . 1 1 . . . . . 1 Hackware 1 | . . . 1 . . . . . . . Protection 3 | . . 1 2 . . . . . . . Artifact . | . . . . . . . . . . . Weapon 55 | 1 4 10 17 8 6 4 2 . 1 2 Energy Gun 9 | . 1 1 1 2 1 2 . . . 1 Energy Cannon 2 | . . . 2 . . . . . . . Ballistic Gun 13 | 1 . . 4 4 1 2 . . . 1 Ballistic Cannon 11 | . 1 4 3 1 1 . 1 . . . Launcher 2 | . . 1 . . 1 . . . . . Special Weapon 4 | . 1 2 . . . . . . 1 . Impact Weapon . | . . . . . . . . . . . Slashing Weapon 6 | . . 1 3 1 1 . . . . . Piercing Weapon 1 | . . . . . . . 1 . . . Special Melee Weapon 7 | . 1 1 4 . 1 . . . . . Unidentified Prototypes 8 | . . 2 2 3 . . . . . 1 Parts Lost . | . . . . . . . . . . . Power . | . . . . . . . . . . . Propulsion . | . . . . . . . . . . . Utility . | . . . . . . . . . . . Weapon . | . . . . . . . . . . . Highest Loss Streak . | . . . . . . . . . . . To Critical Strikes . | . . . . . . . . . . . Average Slot Usage (%) 97 | . 93 95 90 99 97 100 100 100 100 100 Engine 11 | . 12 9 13 20 10 9 9 9 9 7 Core 5 | . 2 4 . . 9 9 9 9 9 10 Leg 16 | . . 11 22 21 19 19 19 19 19 19 Wheel 2 | . 3 14 . . . . . . . . Device 17 | . 12 20 16 15 18 19 19 19 19 19 Storage 1 | . . . . . . 3 4 4 4 4 Processor 17 | . 33 21 15 13 15 14 14 14 14 14 Hackware 2 | . . . . 5 5 4 4 4 4 4 Ballistic Gun 3 | . 4 . 3 5 4 5 7 4 4 3 Ballistic Cannon 4 | . 7 6 6 3 5 1 . 4 4 4 Special Weapon 2 | . 7 4 . . . . . . 3 4 Slashing Weapon 2 | . . 3 5 5 5 4 3 . . . Piercing Weapon 1 | . . . . . . . . 4 4 4 Special Melee Weapon 2 | . 1 . 3 5 5 4 4 4 . . Naked Turns . | . . . . . . . . . . . Heaviest Build 58 | 6 13 24 44 52 52 52 55 55 58 58 Greatest Support 75 | 20 21 57 58 72 75 75 75 75 75 75 Greatest Overweight (x) 1 | 1 1 1 1 . . . . . . . Average Overweight (x) . | . . . . . . . . . . . Largest Inventory Capacity 5 | . 3 3 4 4 4 4 5 5 5 5 Average Capacity 3 | . 1 3 3 4 4 4 4 5 5 5 Most Carried 5 | . 3 3 4 4 4 4 5 5 5 5 Average Carried 3 | . 1 2 2 3 3 2 4 5 4 4 Final Capacity 5 | . 3 3 4 4 4 4 5 5 5 5 Final Carried 5 | . 3 3 4 4 2 4 5 5 5 5 Class Distribution -------------------- 61% | Hacker-Assassin 16% | Hacker-Mutant 11% | Scavenger-Assassin 6% | Scavenger-Skirmisher 5% | Scavenger-Mutant Dominant Class ---------------- Hacker-Mutant | -10/Materials Scavenger-Assassin | -9/Materials Hacker-Mutant | -8/Materials Hacker-Assassin | -7/Factory Hacker-Assassin | -6/Factory Hacker-Assassin | -6/Lower Caves Hacker-Assassin | -6/Lower Caves Hacker-Assassin | -6/Data Miner Hacker-Assassin | -5/Proximity Caves Hacker-Assassin | -5/Factory Resources | -11 -10 -9 -8 -7 -6 -6 -6 -6 -5 -5 ----------- Run | Jun Mat Mat Mat Fac Fac Low Low Dat Pro Fac Matter Collected 3739 | 152 427 758 551 663 438 152 78 . 176 344 Remotely 1112 | . . . . . 362 152 78 . 176 344 Salvage Created 4607 | . 639 964 788 583 223 52 364 . 211 783 Parts 270 | . 45 65 47 32 15 7 7 . 9 43 Haulers Intercepted . | . . . . . . . . . . . Recyclers Shooed 3 | . 1 2 . . . . . . . . Parts Field Recycled . | . . . . . . . . . . . Retrieved Matter . | . . . . . . . . . . . Parts Self-Destructed . | . . . . . . . . . . . Prevented . | . . . . . . . . . . . Kills | -11 -10 -9 -8 -7 -6 -6 -6 -6 -5 -5 ------- Run | Jun Mat Mat Mat Fac Fac Low Low Dat Pro Fac Combat Hostiles Destroyed 105 | . 9 29 17 14 12 5 2 . 5 12 Melee 14 | . . . 9 3 . . . . . 2 Guns 20 | . 2 . . 4 6 1 1 . 2 4 Cannons 69 | . 7 29 8 7 6 4 1 . 3 4 AOE 2 | . . . . . . . . . . 2 Classes Destroyed 13 | . 7 2 1 1 1 . . . . 1 Worker 8 | . 3 . 1 . . . . . . 4 Builder 7 | . 5 . 1 . . . . . . 1 Tunneler 2 | . 1 1 . . . . . . . . Recycler 9 | . 3 4 1 . . . . . . 1 Operator 1 | . . . . . . . . . . 1 Watcher 16 | . 3 4 5 1 . . . . . 3 Swarmer 29 | . 4 6 1 2 6 5 . . 3 2 Grunt 43 | . 5 11 11 7 3 . 1 . 1 4 Brawler 3 | . . . 1 2 . . . . . . Duelist 4 | . . 2 1 . . . 1 . . . Sentry 15 | . . 10 3 1 . . . . . 1 Hunter 2 | . . . . . 2 . . . . . Programmer 9 | . . . . 2 1 . . . 1 5 Best Kill Streak 8 | . 5 5 4 3 3 5 2 . 3 8 Combat Bots Only 5 | . 2 5 4 3 3 5 2 . 3 5 Max Kills in Single Turn 4 | . 1 1 1 2 1 1 1 . 2 4 Gunslinging 1 | . . . . 1 . . . . . . Exploded 2 | . . . . . . . . . . 2 Melee 1 | . . . 1 1 . . . . . 1 Uniques/NPCs Destroyed . | . . . . . . . . . . . Combat | -11 -10 -9 -8 -7 -6 -6 -6 -6 -5 -5 -------- Run | Jun Mat Mat Mat Fac Fac Low Low Dat Pro Fac Damage Taken 3924 | . 167 654 671 279 459 449 36 . 306 903 Core 3115 | . 142 510 534 210 354 371 30 . 240 724 Absorbed by Shields . | . . . . . . . . . . . Redirected to Core 2530 | . 64 429 425 191 329 286 18 . 211 577 Regen/Repaired (Parts) 99 | . . . . 26 62 . . . . 11 Core Remaining (%) 84 | 100 86 94 73 85 . . . . 71 . Volleys Fired 331 | 5 73 108 40 24 31 6 4 . 13 27 Largest 2 | 1 2 2 2 2 2 2 2 . 2 2 Hottest 130 | 20 59 120 130 76 76 76 90 . 90 92 Shots Fired 492 | 5 81 121 79 49 62 12 8 . 26 49 Gun 158 | 5 30 . 8 35 31 6 4 . 13 26 Cannon 305 | . 43 100 71 14 31 6 4 . 13 23 Launcher . | . . . . . . . . . . . Special 29 | . 8 21 . . . . . . . . Kinetic 435 | 5 55 100 73 49 62 12 8 . 26 45 Thermal 35 | . 8 21 6 . . . . . . . Explosive . | . . . . . . . . . . . Electromagnetic 22 | . 18 . . . . . . . . 4 Robot Hit Streak 43 | 5 31 32 38 42 22 23 30 . 43 36 Robot Miss Streak 2 | . 2 1 2 1 1 . . . 1 1 Penetration Max 1 | . . . . . 1 . . . 1 1 Secondary Targets 1 | . . . . 1 . . . . . . Max Gunslinging Chain 1 | . . . . 1 . . . . . . Shots Hit Robots 480 | 5 69 111 92 54 53 11 18 . 21 46 Core Hits 215 | . 30 44 32 33 21 6 7 . 12 30 Critical Kills 5 | . . . . . . . 1 . 1 3 Critical Parts Destroyed 7 | . . . . . 2 . 1 . 1 3 Critical Strikes 36 | . 4 3 4 5 6 3 2 . 3 6 Destroy 12 | . . . . . 2 . 2 . 2 6 Blast 20 | . 4 3 1 4 4 3 . . 1 . Sever 4 | . . . 3 1 . . . . . . Melee Attacks 72 | . . 3 27 10 1 5 11 . . 15 Impact . | . . . . . . . . . . . Slashing 50 | . . 2 26 8 . 5 9 . . . Piercing 15 | . . . . . . . . . . 15 Sneak Attacks 5 | . . 2 . 2 1 . . . . . Combat Hostiles . | . . . . . . . . . . . Follow-up Attacks 1 | . . . 1 . . . . . . . Damage Inflicted 11758 | 42 1248 2298 2331 1213 1196 249 707 . 480 1994 Guns 2111 | 42 377 . 138 607 522 118 25 . 78 204 Cannons 6402 | . 781 1958 1373 352 674 131 99 . 402 632 Explosions 1081 | . 86 . . . . . . . . 995 Melee 1911 | . . 127 820 254 . . 583 . . 127 Ramming 41 | . . 5 . . . . . . . 36 Kinetic 8065 | 42 876 1958 1376 959 1196 249 124 . 480 805 Thermal 1070 | . 90 208 135 . . . . . . 637 Explosive 358 | . . . . . . . . . . 358 Electromagnetic 313 | . 282 . . . . . . . . 31 Impact . | . . . . . . . . . . . Slashing 1784 | . . 127 820 254 . . 583 . . . Piercing 127 | . . . . . . . . . . 127 Highest Corruption 2 | . . . . 1 . . . . . 2 Average Corruption 1 | . . . . 1 . . . . . 1 Corruption Purged 1 | . . . . . . . . . . 1 Corruption Blocked . | . . . . . . . . . . . Effects 7 | . . . . 6 . . . . . 1 Message Errors 2 | . . . . 2 . . . . . . Matter Fused 1 | . . . . 1 . . . . . . Heat Flow Errors 1 | . . . . . . . . . . 1 Energy Discharges 2 | . . . . 2 . . . . . . Misfires 1 | . . . . 1 . . . . . . Overload Shots . | . . . . . . . . . . . Overflow Damage 337 | . 4 111 48 . 12 . 53 . 11 98 Projectiles 139 | . . 49 37 . 12 . . . 11 30 Explosions 66 | . 4 . . . . . . . . 62 Melee 132 | . . 62 11 . . . 53 . . 6 Knockbacks 38 | . 5 17 6 1 1 . 2 . 2 4 Impact . | . . . . . . . . . . . Kinetic 36 | . 5 16 5 1 1 . 2 . 2 4 Secondary 2 | . . 1 1 . . . . . . . Self-Inflicted Damage 47 | . 45 2 . . . . . . . . Shots 2 | . 2 . . . . . . . . . Rammed 1 | . . 1 . . . . . . . . Targets Rammed 2 | . . 1 . . . . . . . 1 Kicked 1 | . . . . . . . . . . 1 Crushed . | . . . . . . . . . . . Highest Temperature 664 | . 49 297 322 288 202 81 186 . 333 664 Average Temperature 93 | . 15 66 128 83 82 36 98 . 141 145 Received Heat Transfer 1440 | . 60 396 558 138 45 . 27 . 63 153 Effects 25 | . . 1 5 3 . . . . . 16 Shutdowns 4 | . . . . . . . . . . 4 Energy Bleed 4 | . . 1 2 . . . . . . 1 Interference 12 | . . . 3 3 . . . . . 6 Damage (major) 4 | . . . . . . . . . . 4 Damage (core) 1 | . . . . . . . . . . 1 Siege Activations . | . . . . . . . . . . . Robots Corrupted . | . . . . . . . . . . . Combat Hostiles . | . . . . . . . . . . . Parts Fried 2 | . 2 . . . . . . . . . Impact Corruptions 1 | . . . . . . . . . . 1 Robots Melted . | . . . . . . . . . . . Combat Hostiles . | . . . . . . . . . . . Parts Melted 1 | . . . 1 . . . . . . . Heat Transferred 1260 | . 150 525 185 . . . . . . 400 Parts Sabotaged . | . . . . . . . . . . . Parts Stolen . | . . . . . . . . . . . Parts Stripped . | . . . . . . . . . . . Power Chain Reactions 2 | . 2 . . . . . . . . . Missiles Intercepted . | . . . . . . . . . . . Alert | -11 -10 -9 -8 -7 -6 -6 -6 -6 -5 -5 ------- Run | Jun Mat Mat Mat Fac Fac Low Low Dat Pro Fac Peak Influence 345 | . 194 345 304 156 214 . . . . 335 Initial 55 | . . 14 50 . 55 . . . . . Average 92 | . 84 114 125 52 98 . . . . 75 Maximum Alert Level 1 | . . 1 1 . 1 . . . . 1 Low Security (%) 87 | 100 100 82 75 100 74 . . . . 96 Level 1 12 | . . 17 25 . 25 . . . . 3 Level 2 . | . . . . . . . . . . . Level 3 . | . . . . . . . . . . . Level 4 . | . . . . . . . . . . . Level 5 . | . . . . . . . . . . . High Security . | . . . . . . . . . . . Max Security . | . . . . . . . . . . . Squads Dispatched 27 | . 3 4 2 6 4 . . . . 8 Investigation 15 | . 3 2 1 3 3 . . . . 3 Extermination 5 | . . . . 2 1 . . . . 2 Reinforcement 6 | . . 2 1 1 . . . . . 2 Assault . | . . . . . . . . . . . Garrison 1 | . . . . . . . . . . 1 Intercept . | . . . . . . . . . . . Searches Triggered . | . . . . . . . . . . . Construction Impeded . | . . . . . . . . . . . Haulers Reinforced . | . . . . . . . . . . . Active Scanning Responses . | . . . . . . . . . . . Cargo Convoy Interrupts . | . . . . . . . . . . . Stealth | -11 -10 -9 -8 -7 -6 -6 -6 -6 -5 -5 --------- Run | Jun Mat Mat Mat Fac Fac Low Low Dat Pro Fac Distress Signals 4 | . . 1 2 . . . . . . 1 Communications Jammed . | . . . . . . . . . . . Distress Signals . | . . . . . . . . . . . Times Spotted 156 | . 15 41 33 18 12 5 2 . 6 24 Peak Tracking Total 8 | . 2 6 3 3 3 3 2 . 3 8 Tactical Retreats 15 | . 4 2 8 . . . . . . 1 Traps | -11 -10 -9 -8 -7 -6 -6 -6 -6 -5 -5 ------- Run | Jun Mat Mat Mat Fac Fac Low Low Dat Pro Fac Traps Triggered 8 | . 3 5 . . . . . . . . Indirectly . | . . . . . . . . . . . Trap Hack Attempts . | . . . . . . . . . . . Triggered . | . . . . . . . . . . . Disarmed . | . . . . . . . . . . . Reprogrammed . | . . . . . . . . . . . Reused . | . . . . . . . . . . . Traps Extracted . | . . . . . . . . . . . Installed . | . . . . . . . . . . . Triggered . | . . . . . . . . . . . Machines | -11 -10 -9 -8 -7 -6 -6 -6 -6 -5 -5 ---------- Run | Jun Mat Mat Mat Fac Fac Low Low Dat Pro Fac Machines Disabled 17 | . . . 1 . . . . . . 16 Max in Single Turn 6 | . . . 1 . . . . . . 6 Machines Repaired . | . . . . . . . . . . . Machines Sabotaged . | . . . . . . . . . . . Overloaded Fab Kills . | . . . . . . . . . . . Hacking | -11 -10 -9 -8 -7 -6 -6 -6 -6 -5 -5 --------- Run | Jun Mat Mat Mat Fac Fac Low Low Dat Pro Fac Machines Accessed 55 | . 9 12 6 6 5 3 1 4 1 8 Terminals 37 | . 7 10 4 5 3 . . . 1 7 Fabricators . | . . . . . . . . . . . Repair Stations 4 | . 1 . . 1 1 . . . . 1 Recycling Units 2 | . 1 1 . . . . . . . . Scanalyzers 4 | . . 1 2 . 1 . . . . . Garrison Access . | . . . . . . . . . . . Total Hacks 171 | . 21 31 22 17 19 7 1 30 1 22 Successful 134 | . 15 21 20 8 15 7 1 30 1 16 Failed 37 | . 6 10 2 9 4 . . . . 6 Catastrophic 3 | . . 2 . 1 . . . . . . Database Lockouts . | . . . . . . . . . . . Manual 87 | . 17 34 9 5 2 . . . 1 19 Terminals 101 | . 16 29 12 15 8 . . . 1 20 Fabricators . | . . . . . . . . . . . Repair Stations 9 | . 3 . . 2 2 . . . . 2 Recycling Units 3 | . 2 1 . . . . . . . . Scanalyzers 20 | . . 1 10 . 9 . . . . . Garrison Access . | . . . . . . . . . . . Terminal Hacks 66 | . 1 8 6 6 3 7 1 30 1 3 Record 20 | . . . . 1 2 5 . 11 1 . Part Schematic 13 | . . 1 . 1 . . . 11 . . Robot Schematic 5 | . . . . . . . . 5 . . Robot Analysis 2 | . . . . 2 . . . . . . Prototype ID Bank 4 | . . . 1 . . . . 3 . . Open Door 3 | . . . . . . 2 1 . . . Open DSF 5 | . . . . 2 1 . . . . 2 Terminal Index 3 | . . 1 1 . . . . . . 1 Fabricator Index 2 | . . 1 1 . . . . . . . Alert Level 1 | . . 1 . . . . . . . . Locate Traps 3 | . 1 1 1 . . . . . . . Registered Components 1 | . . . 1 . . . . . . . Registered Prototypes 1 | . . 1 . . . . . . . . Zone Layout 3 | . . 2 1 . . . . . . . Fabricator Hacks . | . . . . . . . . . . . Repair Station Hacks 7 | . 1 . . 2 2 . . . . 2 Scan Component 4 | . 1 . . 1 1 . . . . 1 Repair 3 | . . . . 1 1 . . . . 1 Recycling Unit Hacks 1 | . 1 . . . . . . . . . Report Inventory 1 | . 1 . . . . . . . . . Scanalyzer 19 | . . . 10 . 9 . . . . . Insert Component 10 | . . . 5 . 5 . . . . . Analyze 9 | . . . 5 . 4 . . . . . Garrison Access Hacks . | . . . . . . . . . . . Unauthorized Hacks 41 | . 12 13 4 . 1 . . . . 11 Terminals 37 | . 10 11 4 . 1 . . . . 11 Track 4 | . . 1 . . . . . . . 3 Assimilate 9 | . 3 2 1 . . . . . . 3 Botnet 24 | . 7 8 3 . 1 . . . . 5 Fabricators . | . . . . . . . . . . . Repair Stations 1 | . 1 . . . . . . . . . Mechanics 1 | . 1 . . . . . . . . . Recycling Units 2 | . 1 1 . . . . . . . . Reject 1 | . . 1 . . . . . . . . Mask 1 | . 1 . . . . . . . . . Scanalyzers 1 | . . 1 . . . . . . . . Researchers 1 | . . 1 . . . . . . . . Garrison Access . | . . . . . . . . . . . Data Cores Recovered . | . . . . . . . . . . . Used . | . . . . . . . . . . . Hacking Detections 33 | . 6 8 6 5 4 . . . . 4 Full Trace Events 16 | . 4 2 1 3 3 . . . . 3 Feedback Events 1 | . . . . . . . . . . 1 Corruption 1 | . . . . . . . . . . 1 Feedback Blocked . | . . . . . . . . . . . Robot Schematics Acquired 5 | . . . . . . . . 5 . . Robots Built . | . . . . . . . . . . . Authchips . | . . . . . . . . . . . Time . | . . . . . . . . . . . Total Robot Build Rating . | . . . . . . . . . . . Part Schematics Acquired 22 | . . 1 5 1 4 . . 11 . . Parts Built . | . . . . . . . . . . . Authchips . | . . . . . . . . . . . Time . | . . . . . . . . . . . Total Part Build Rating . | . . . . . . . . . . . Parts Repaired 3 | . . . . 1 1 . . . . 1 Time 94 | . . . . 22 44 . . . . 28 Parts Recycled . | . . . . . . . . . . . Recycled Matter . | . . . . . . . . . . . Retrieved Matter . | . . . . . . . . . . . Retrieved Components . | . . . . . . . . . . . Parts Scanalyzed 9 | . . . 5 . 4 . . . . . Part Schematics Acquired 9 | . . . 5 . 4 . . . . . Parts Damaged . | . . . . . . . . . . . Bothacking | -11 -10 -9 -8 -7 -6 -6 -6 -6 -5 -5 ------------ Run | Jun Mat Mat Mat Fac Fac Low Low Dat Pro Fac Used RIF Installer . | . . . . . . . . . . . Robots Hacked 2 | . . . . 1 1 . . . . . Non-combat 2 | . . . . 1 1 . . . . . Combat . | . . . . . . . . . . . Robot Hacks Applied 3 | . . . . 2 1 . . . . . no_distress 2 | . . . . 2 . . . . . . find_chute 1 | . . . . . 1 . . . . . Relay Couplers Released . | . . . . . . . . . . . Fabnet Peak Effective % . | . . . . . . . . . . . Robots Rewired . | . . . . . . . . . . . Allies Hacked . | . . . . . . . . . . . Hacks Repelled . | . . . . . . . . . . . Allies | -11 -10 -9 -8 -7 -6 -6 -6 -6 -5 -5 -------- Run | Jun Mat Mat Mat Fac Fac Low Low Dat Pro Fac Total Allies 3 | . . . . . . 2 . . 1 . Largest Group 2 | . . . . . . 2 . . 1 1 Highest-Rated Group 96 | . . . . . . 50 . . 96 96 Highest-Rated Ally 96 | . . . . . . 25 . . 96 96 Total Orders . | . . . . . . . . . . . Ally Attacks 15 | . . . . . . . . . 12 3 Total Damage 775 | . . . . . . . . . 304 471 Kills 4 | . . . . . . . . . 2 2 Allies Corrupted . | . . . . . . . . . . . Allies Melted . | . . . . . . . . . . . Intel | -11 -10 -9 -8 -7 -6 -6 -6 -6 -5 -5 ------- Run | Jun Mat Mat Mat Fac Fac Low Low Dat Pro Fac Robot Analysis Total 2 | . . . . 2 . . . . . . Derelict Logs Recovered 6 | . . . . . . 1 2 . 3 . Drone Launches . | . . . . . . . . . . . Drone Recoveries . | . . . . . . . . . . . Exploration | -11 -10 -9 -8 -7 -6 -6 -6 -6 -5 -5 ------------- Run | Jun Mat Mat Mat Fac Fac Low Low Dat Pro Fac Turns Passed 10738 | 67 903 1956 1244 1344 959 1226 374 93 1244 1328 Spaces Moved 7714 | 39 1102 1378 890 794 541 1062 294 87 847 680 Core 247 | 25 222 . . . . . . . . . Treads 14 | 14 . . . . . . . . . . Legs 5941 | . . 746 890 794 541 1062 294 87 847 680 Wheels 843 | . 211 632 . . . . . . . . Hover . | . . . . . . . . . . . Flight 669 | . 669 . . . . . . . . . Fastest Speed 40 | 50 40 87 90 90 107 107 107 107 107 107 Average Speed 96 | 118 63 91 92 105 107 107 107 107 107 107 Slowest Speed 180 | 160 100 180 180 107 107 107 107 107 107 107 Overloaded Moves . | . . . . . . . . . . . Propulsion Burnouts . | . . . . . . . . . . . Robots Hopped 4 | . 4 . . . . . . . . . Cave-ins Triggered 1 | . . . . . . 1 . . . . Exploration Rate (%) 55 | 4 93 90 60 25 11 97 46 71 91 21 Regions Visited 10 Branch Regions 4 Pre-discovered Areas 3 | . . . . . . 2 . 1 . . Known Exits Taken 10 | 1 1 1 1 1 1 1 1 1 1 . Unknown Exits Taken . | . . . . . . . . . . . Scrap Searched 7 | . . . . . . 2 1 . 4 . Spaces Dug 13 | . . . . . . 5 . . . 8 Terrain Destroyed 130 | . 4 . 4 1 8 7 2 . 6 98 Melee 13 | . . . . . . 5 . . . 8 Projectile 29 | . . . 4 1 8 2 1 . 6 7 AOE 87 | . 4 . . . . . . . . 83 Terrain Rammed . | . . . . . . . . . . . Walls Destroyed . | . . . . . . . . . . . Machines Disabled . | . . . . . . . . . . . Actions | -11 -10 -9 -8 -7 -6 -6 -6 -6 -5 -5 --------- Run | Jun Mat Mat Mat Fac Fac Low Low Dat Pro Fac Total 10432 | 54 1217 1928 1203 1247 865 1132 331 86 1160 1209 Wait 1869 | 6 16 325 145 367 235 22 . . 291 462 Move 7696 | 38 1093 1377 889 793 540 1061 293 86 846 680 Hop 4 | . 4 . . . . . . . . . Pick Up 68 | . 6 13 20 10 7 8 2 . 1 1 Fast Attach 54 | 4 10 21 7 1 7 2 . . . 2 Attach 28 | . 2 2 13 4 6 1 . . . . Detach 6 | . . . 3 . 3 . . . . . Swap 56 | . 3 13 12 10 2 4 3 . 2 7 Drop 104 | 1 7 27 24 12 16 7 2 . 3 5 Fire 331 | 5 73 108 40 24 31 6 4 . 13 27 Melee 71 | . . 3 26 10 1 5 11 . . 15 Ram 1 | . . 1 . . . . . . . . Kick 1 | . . . . . . . . . . 1 Crush . | . . . . . . . . . . . Escape Stasis . | . . . . . . . . . . . Rewire . | . . . . . . . . . . . Trap . | . . . . . . . . . . . Miscellaneous 143 | . 3 38 24 16 17 16 16 . 4 9 Route ------- -11/Junkyard -10/Materials (discovered 4 exits: *Mat x3 / *Min) -9/Materials (discovered 4 exits: *Mat x3 / *Min) -8/Materials (discovered 2 exits: *Fac x2) -7/Factory (discovered 4 exits: *Fac x3 / *Low) -6/Factory -6/Lower Caves -6/Lower Caves (discovered 2 exits: *Fac / *Dat) -6/Data Miner -5/Proximity Caves -5/Factory (discovered 1 exit: Upp) History --------- Turn | Location | Event 31 | -11/Junkyard | Identified exit to Materials 31 | -11/Junkyard | Discovered exit to Materials (range 15) 68 | -11/Junkyard | Entered Materials 192 | -10/Materials | Upgraded with Utility slot (x1) 291 | -10/Materials | Identified exit to Materials 291 | -10/Materials | Discovered exit to Materials (range 4) 297 | -10/Materials | Upgraded with Weapon slot (x1) 318 | -10/Materials | Build established: Hacker-Mutant 331 | -10/Materials | Upgraded with Utility slot (x2) 467 | -10/Materials | Discovered exit to Materials (range 6) 623 | -10/Materials | Identified exit to Mines 623 | -10/Materials | Discovered exit to Mines (range 6) 632 | -10/Materials | Upgraded with Utility slot (x1) 737 | -10/Materials | Build established: Scavenger-Mutant 792 | -10/Materials | Discovered exit to Materials (range 15) 971 | -10/Materials | Entered another Materials area 973 | -9/Materials | Reached level 2 973 | -9/Materials | Reached level 3 973 | -9/Materials | Reached level 4 980 | -9/Materials | Upgraded with Power slot (x1) 980 | -9/Materials | Upgraded with Propulsion slot (x3) 980 | -9/Materials | Upgraded with Utility slot (x1) 1087 | -9/Materials | Build established: Hacker-Mutant 1523 | -9/Materials | Build established: Scavenger-Skirmisher 1597 | -9/Materials | Identified exit to Materials 1597 | -9/Materials | Discovered exit to Materials (range 10) 1910 | -9/Materials | Reached level 5 2004 | -9/Materials | Identified exit to Mines 2004 | -9/Materials | Discovered exit to Mines (range 15) 2294 | -9/Materials | Reached level 6 2299 | -9/Materials | Build established: Scavenger-Assassin 2440 | -9/Materials | Discovered exit to Materials (range 14) 2870 | -9/Materials | Discovered exit to Materials (range 14) 2927 | -9/Materials | Entered another Materials area 2929 | -8/Materials | Reached level 7 2929 | -8/Materials | Reached level 8 3086 | -8/Materials | Upgraded with Power slot (x2) 3086 | -8/Materials | Upgraded with Weapon slot (x2) 3451 | -8/Materials | Identified exit to Factory 3451 | -8/Materials | Discovered exit to Factory (range 16) 3478 | -8/Materials | Build established: Hacker-Mutant 3549 | -8/Materials | Reached level 9 3890 | -8/Materials | Discovered exit to Factory (range 9) 4171 | -8/Materials | Entered Factory 4173 | -7/Factory | Reached level 10 4195 | -7/Factory | Identified exit to Lower Caves 4195 | -7/Factory | Discovered exit to Lower Caves (range 12) 4243 | -7/Factory | Reached level 11 4362 | -7/Factory | Repaired Imp. Deuterium Engine 4364 | -7/Factory | Upgraded with Utility slot (x1) 4608 | -7/Factory | Identified exit to Factory 4608 | -7/Factory | Discovered exit to Factory (range 14) 4658 | -7/Factory | Build established: Hacker-Assassin 4904 | -7/Factory | Discovered exit to Factory (range 16) 5436 | -7/Factory | Reached level 12 5439 | -7/Factory | Upgraded with Utility slot (x1) 5465 | -7/Factory | Discovered exit to Factory (range 16) 5515 | -7/Factory | Entered another Factory area 5517 | -6/Factory | Reached level 13 5649 | -6/Factory | Repaired Imp. Carbon-fiber Leg 6100 | -6/Factory | Reached level 14 6332 | -6/Factory | Identified exit to Lower Caves 6332 | -6/Factory | Discovered exit to Lower Caves (range 7) 6474 | -6/Factory | Entered Lower Caves 6514 | -6/Lower Caves | Upgraded with Utility slot (x1) 6892 | -6/Lower Caves | Reached level 15 7007 | -6/Lower Caves | Crushed by falling debris 7007 | -6/Lower Caves | Core integrity fell below 50% 7532 | -6/Lower Caves | Encountered a Warlord checkpoint 7534 | -6/Lower Caves | Identified exit to Lower Caves 7534 | -6/Lower Caves | Discovered exit to Lower Caves (range 12) 7624 | -6/Lower Caves | A Commander dispatched an escort 7639 | -6/Lower Caves | Learned location of Extension (-6) 7639 | -6/Lower Caves | Learned Armory emergency access door positions 7639 | -6/Lower Caves | Learned Research emergency access door positions 7700 | -6/Lower Caves | Entered another Lower Caves area 7700 | -6/Lower Caves | Accompanied by 2 allies 7701 | -6/Lower Caves | Commander's escort returned to base 7701 | -6/Lower Caves | Commander's escort returned to base 7836 | -6/Lower Caves | Learned location of 1 exit from Factory 7842 | -6/Lower Caves | Identified exit to Factory 7842 | -6/Lower Caves | Discovered exit to Factory (range 8) 7878 | -6/Lower Caves | Encountered a Warlord checkpoint 7889 | -6/Lower Caves | Learned 4 Factory zone layouts 8048 | -6/Lower Caves | Identified exit to Data Miner 8048 | -6/Lower Caves | Discovered exit to Data Miner (range 7) 8074 | -6/Lower Caves | Entered Data Miner 8074 | -6/Data Miner | Identified exit to Proximity Caves 8074 | -6/Data Miner | Discovered exit to Proximity Caves (range 6) 8076 | -6/Data Miner | Reached level 16 8095 | -6/Data Miner | Met Data Miner 8132 | -6/Data Miner | Learned location of Section 7 (-2) 8132 | -6/Data Miner | Acquired the access code to Warlord's prototype stash 8143 | -6/Data Miner | Received God Mode back door access code from Data Miner 8167 | -6/Data Miner | Entered Proximity Caves 8440 | -5/Proximity Caves | Escorted by Enhanced Grunt 8499 | -5/Proximity Caves | Learned Factory trap positions 8531 | -5/Proximity Caves | Discovered exit to Factory (range 8) 8706 | -5/Proximity Caves | Reached level 17 8968 | -5/Proximity Caves | Received a Behemoth hack from an annoying Tinkerer 9411 | -5/Proximity Caves | Entered Factory 9411 | -5/Factory | Accompanied by 1 ally 9412 | -5/Factory | Identified exit to Upper Caves 9413 | -5/Factory | Reached level 18 9414 | -5/Factory | Loaded intel: 82 trap records 9479 | -5/Factory | Repaired Adv. System Restoration Module 10195 | -5/Factory | Core integrity fell below 50% 10198 | -5/Factory | Reached level 19 10733 | -5/Factory | Core integrity fell below 20% 10736 | -5/Factory | Garrison activated, responded to threat 10740 | -5/Factory | Core destroyed Last Messages --------------- 10732_ G-50 Soldier destroyed. 10733_ K-01 Serf collects debris. 10734_ R-10 Processor collects Mic. Fission Core. 10735_ The unstable cave ceiling collapses. 10735_ K-01 Serf collects debris. 10736_ Power failure, Imp. Deuterium Engine shutdown. 10736_ Overheating: Imp. Titanium Leg damaged (-84). 10736_ Overheating: Mass Driver damaged (-49). 10736_ Overheating: Mic. Fission Core damaged (-18). 10736_ Overheating: Imp. VSS Leg damaged (-53). 10736_ K-01 Serf collects debris. 10736_ P-70 Sage calls for garrison reinforcements. 10736_ ALERT: Activating Garrison Access F001. 10738_ Overheating: Energy bleed (-93). 10738_ K-01 Serf collects debris. 10738_ R-10 Processor collects Tesla Rifle. 10739_ Power failure, Nuclear Core shutdown. 10739_ Power failure, Mic. Fission Core shutdown. 10740_ Overheating: Core damaged (-104). [Achievement: This Is Interesting...] Map ----- +----------------------------------------------------+ | ????????????????????????????????????????????? | | ?????????????????????????????????????????????""""" | | ????????????????????????????????????????????? | | ?????????????????????????????????????????????""""" | | ????????????????????????????????????????????? | | ????????????????????????????????????????????? | | ?????????????????????????????????????????????##### | | ?????????????????????????????????????????????????? | | ?????????????????????????????????????????????????? | | ?????????????????????????????????????????????????? | | ?????????????????????#???###?????????????????????? | | ?????????#??##????#????#??####?##????????????????? | | ??" ???"????#?#??#?#######???##?##???????????????? | | ??? ? ""#???????########?##??#######?????????????? | | ? ? " ??###?###?############?####?#????????????? | | " " " ?#? ? ?##????#####?######??#?#??????? | | " " " #?# ?"""? ?###??#####?########????#???#??? | | " " " #?# """"" ?#######??######?##??#?????????? | | ?/ """ ?########?############?#????##?? | | " " " ### #####################?#?#?????# | | " " " ### """"? ?########?#### #####???#?###?# | | " " " ### """"" #######?###### ### ##????#??## | | " " " ### """ ##?######## ##?###?##?# | | " " " # ? ####?##### ####?###?#?? | | " " " ###+###########T # ! ######?#?? | | " " " %%p^! @ [ # #### ##?## | | " " " [!|%= ! ##?## | | " " " ^^ =% % ! """ ##?## | | ^ ! = "Y ! ####? | | ^^ % """ #? ? | | ###+########## k k # # "" | | # # ##### ## ! #??"? | | ########### #?## ####""###? "" | | ########### #### Rg########## # ? | | ########### ? #### Y t ##### | | #####?##### #?## T | | ######?#### """""" #### ##### | | ########### """"?? #### #;######## ! ##?## | | ########### """?"" #### !######?#########?##? | | ########### """"""?##################?######?##?## | | ################???####################?##?#?##??# | | ###############??#???###?##?###########?######?#?# | | ############?????#?#???##?#?############?##??#?### | | | | | | | | | | | | | | | +----------------------------------------------------+ Best States ------------- Heat Dissipation 44 Energy Generation 48 Energy Capacity 880 Matter Stores 450 Matter Capacity 450 Sight Range 18 Robot Scan Range 18 Terrain Scan Range 16 Terrain Scan Density 310 ECM Strength 1 Jamming Range 14 Resistance: KI 35 Resistance: TH 35 Resistance: EX 35 Resistance: EM 60 Resistance: I 35 Resistance: S 35 Resistance: P 35 Evasion (%) 62 Targeting Accuracy 6 Recoil Reduction 1 Offensive Hacking 35 Item Schematics ----------------- Hacking Suite | -9/Materials | Hacked Datajack | -8/Materials | Scanalyzed Heat Sink | -8/Materials | Scanalyzed Adv. Weight Redist. System | -8/Materials | Scanalyzed Katana | -8/Materials | Scanalyzed Imp. Terrain Scanner | -8/Materials | Scanalyzed Imp. Kinecellerator | -7/Factory | Hacked Com. Battery | -6/Factory | Scanalyzed Prc. Assault Rifle | -6/Factory | Scanalyzed Chainsword | -6/Factory | Scanalyzed Imp. Datajack | -6/Factory | Scanalyzed Combat Drone Bay | -6/Data Miner | Free Lgt. Regenerative Plating | -6/Data Miner | Free Cld. Nuclear Pulse Thruster | -6/Data Miner | Free Imp. Matter Compressor | -6/Data Miner | Free Hvy. Proton Missile Launcher | -6/Data Miner | Free Imp. Linear Gravjet | -6/Data Miner | Free Adv. Thermal Generator | -6/Data Miner | Free Adv. Datajack | -6/Data Miner | Free Point Defense System | -6/Data Miner | Free Adv. Reaction Control System | -6/Data Miner | Free Particle Reactor | -6/Data Miner | Free Robot Schematics ------------------ A-15 Conveyor | -6/Data Miner | Free Y-54 Guardian | -6/Data Miner | Free R-10 Processor | -6/Data Miner | Free E-15 Imp | -6/Data Miner | Free W-44 Eye | -6/Data Miner | Free Fabricated ------------ Nothing Alien Tech Used ----------------- None Achievements -------------- Omniscient Cartographer Part-time Excavator The Oracle This Is Interesting... Challenges ------------ None RPGLIKE | -11 -10 -9 -8 -7 -6 -6 -6 -6 -5 -5 --------- Run | Jun Mat Mat Mat Fac Fac Low Low Dat Pro Fac Levels Raised 18 | . . 5 3 3 2 1 . 1 1 2 XP Earned 33942 | 6000 1375 7412 4174 3814 3449 1100 750 650 1873 3345 XP Spent 26150 | . 5900 4600 7500 4300 . 2600 1250 . . . Upgrades 34 | . 9 5 16 2 . 1 1 . . . Power Slot 3 | . . 1 2 . . . . . . . Propulsion Slot 3 | . . 3 . . . . . . . . Utility Slot 8 | . 4 1 . 2 . 1 . . . . Weapon Slot 3 | . 1 . 2 . . . . . . . Core Integrity 1 | . . . 1 . . . . . . . Energy Storage 1 | . . . 1 . . . . . . . Matter Storage 3 | . . . 3 . . . . . . . Mass Support 2 | . 1 . 1 . . . . . . . Inventory Capacity 5 | . 3 . 1 . . . 1 . . . Sensor Range 1 | . . . 1 . . . . . . . Terrain Scan Density 1 | . . . 1 . . . . . . . Ranged Accuracy 2 | . . . 2 . . . . . . . Hack Attack % 1 | . . . 1 . . . . . . . Protomatter Created 1216 | . 20 249 218 174 200 55 120 . 28 152 Integrity Restored 2906 | . 60 699 482 351 339 339 354 . 84 198 Core 2403 | . 60 556 400 288 327 284 206 . 84 198 Parts 503 | . . 143 82 63 12 55 148 . . . Protomatter Decayed 103 | . . 8 . 34 61 . . . . . Game ------ Seed ChargeArmorEdition Manual? 0 Play Time 01:55:54 Cumulative 94.6 hours Start 2023.12.23 @ 13:14:17 End 2023.12.23 @ 15:21:04 Sessions 1 Manual Loads 0 Difficulty Explorer Special Mode Winter2019/RPGLIKE Game No. 19 Rogue 0 Adventurer 12 Explorer 7 Win Type - Total 0 Types 0/0/0/0/0/0/0/0/0 Lore% 26 Gallery% 35 Achievement% 33 Wizard Run 0 Options --------- ASCII 0 Keyboard 0 Movement Mouse Keybinds 0 Fullscreen 1 Font 18/TerminusBold Map View 76x50 Tactical HUD 1 Map Filters NONE Filters NONE Steam 1 RUN: ffb6afc9-67df-4fe0-854e-2a438403537e